Cogmind - Beta 10.2 @@@ ROGUE MODE // 2021.06.06 @ 21:44:49 Player: SM-1TH Result: Destroyed by D-53 Grenadier with Mini Grenade Launcher Performance ------------- Evolutions (0) 0 Regions Visited (2) 400 Robots Destroyed (12) 60 Value Destroyed (251) 251 Prototype IDs (0) 0 Alien Tech Used (0) 0 Bonus (0) 0 TOTAL SCORE: 711 Bonus ------- None Cogmind --------- Core Integrity 0/250 Matter 284/300 Energy 89/100 System Corruption 5% Temperature Cool (0) Movement Core (100) Ox1 Location -10/Mines Parts ------- > --- POWER (1) -------- (None) > --- PROPULSION (2) --- (None) > --- UTILITY (2) ------ Small Storage Unit Signal Interpreter > --- WEAPON (2) ------- Small Laser > --- INVENTORY (6) ---- Improved Heat Sink Signal Interpreter ECM Suite Weapon Shielding Tractor Beam Peak State ------------ > --- POWER ------------ Ion Engine > --- PROPULSION ------- Light Treads Light Treads > --- UTILITY ---------- Small Storage Unit Signal Interpreter > --- WEAPON ----------- Particle Gun Light Cannon > --- INVENTORY -------- Improved Heat Sink Signal Interpreter ECM Suite Weapon Shielding Tractor Beam [Rating: 8] Favorites ----------- Power Ion Engine Engine Ion Engine Propulsion Light Treads Treads Light Treads Utility Small Storage Unit Storage Small Storage Unit Processor Signal Interpreter Weapon Light Assault Rifle Energy Gun EM Pulse Gun Ballistic Gun Light Assault Rifle Ballistic Cannon Light Cannon Build | -11 -10 -10 ------- Run | Scr Mat Min Slots Evolved . | . . . Power . | . . . Propulsion . | . . . Utility . | . . . Weapon . | . . . Parts Attached 13 | 7 3 3 Power 2 | 1 1 . Engine 2 | 1 1 . Core . | . . . Reactor . | . . . Propulsion 2 | 2 . . Treads 2 | 2 . . Leg . | . . . Wheel . | . . . Hover . | . . . Flight . | . . . Utility 2 | 1 1 . Device . | . . . Storage 1 | 1 . . Processor 1 | . 1 . Hackware . | . . . Protection . | . . . Artifact . | . . . Weapon 7 | 3 1 3 Energy Gun 4 | 2 . 2 Energy Cannon . | . . . Ballistic Gun 1 | 1 . . Ballistic Cannon 2 | . 1 1 Launcher . | . . . Special Weapon . | . . . Impact Weapon . | . . . Slashing Weapon . | . . . Piercing Weapon . | . . . Special Melee Weapon . | . . . Unidentified Prototypes . | . . . Parts Lost 7 | . . 7 Power 1 | . . 1 Propulsion 2 | . . 2 Utility . | . . . Weapon 4 | . . 4 Highest Loss Streak 5 | . . 5 Average Slot Usage (%) 97 | . 99 96 Engine 13 | . 14 13 Treads 27 | . 28 26 Storage 14 | . 14 14 Processor 13 | . 13 14 Energy Gun 1 | . . 2 Ballistic Gun 11 | . 14 10 Ballistic Cannon 13 | . 13 13 Naked Turns . | . . . Heaviest Build 15 | 12 13 15 Greatest Support 40 | 40 40 40 Greatest Overweight (x) 1 | 1 . 1 Average Overweight (x) . | . . . Largest Inventory Capacity 6 | 6 6 6 Average Capacity 5 | 4 6 6 Most Carried 6 | 2 6 6 Average Carried 4 | 1 5 5 Final Capacity 6 | 6 6 6 Final Carried 6 | 2 6 5 Class Distribution -------------------- 100% | Mutant Dominant Class ---------------- Mutant | -10/Materials Mutant | -10/Mines Resources | -11 -10 -10 ----------- Run | Scr Mat Min Matter Collected 626 | 275 69 282 Remotely . | . . . Salvage Created 490 | 87 229 174 Parts 33 | 7 12 14 Haulers Intercepted . | . . . Recyclers Shooed . | . . . Parts Field Recycled . | . . . Retrieved Matter . | . . . Parts Self-Destructed . | . . . Prevented . | . . . Kills | -11 -10 -10 ------- Run | Scr Mat Min Combat Hostiles Destroyed 17 | . 3 14 Guns 4 | . . 4 Cannons 13 | . 3 10 Classes Destroyed 5 | 2 1 2 Tunneler 1 | 1 . . Recycler 3 | 1 2 . Swarmer 3 | . . 3 Grunt 5 | . 3 2 Assembled 9 | . . 9 Best Kill Streak 4 | 1 3 4 Combat Bots Only 4 | . 2 4 Max Kills in Single Turn 1 | 1 1 1 Gunslinging . | . . . Exploded . | . . . Melee . | . . . Uniques/NPCs Destroyed . | . . . Combat | -11 -10 -10 -------- Run | Scr Mat Min Damage Taken 1093 | . 132 961 Core 256 | . 24 232 Absorbed by Shields . | . . . Core Remaining (%) 100 | 100 . . Volleys Fired 72 | 5 13 54 Largest 2 | 2 2 2 Hottest 100 | 60 55 100 Shots Fired 137 | 10 26 101 Gun 73 | 10 13 50 Cannon 64 | . 13 51 Launcher . | . . . Special . | . . . Kinetic 125 | 5 26 94 Thermal 7 | . . 7 Explosive . | . . . Electromagnetic 5 | 5 . . Robot Hit Streak 12 | 3 12 9 Robot Miss Streak 5 | 1 1 5 Penetration Max . | . . . Secondary Targets . | . . . Shots Hit Robots 81 | 6 22 53 Core Hits 40 | 3 9 28 Critical Hits 1 | . 1 . Critical Kills 1 | . 1 . Critical Parts Destroyed . | . . . Melee Attacks . | . . . Impact . | . . . Slashing . | . . . Piercing . | . . . Sneak Attacks . | . . . Combat Hostiles . | . . . Follow-up Attacks . | . . . Damage Inflicted 931 | 71 235 625 Guns 371 | 71 89 211 Cannons 560 | . 146 414 Explosions . | . . . Melee . | . . . Ramming . | . . . Kinetic 849 | 16 235 598 Thermal 27 | . . 27 Explosive . | . . . Electromagnetic 55 | 55 . . Impact . | . . . Slashing . | . . . Piercing . | . . . Highest Corruption 5 | . . 5 Average Corruption 5 | . . 5 Corruption Purged . | . . . Effects 11 | . . 11 Message Errors 3 | . . 3 Matter Fused 2 | . . 2 Heat Flow Errors 1 | . . 1 Energy Discharges 1 | . . 1 Data Loss (minor) 2 | . . 2 Targeting Errors 2 | . . 2 Overload Shots . | . . . Overflow Damage 8 | . . 8 Projectiles 8 | . . 8 Explosions . | . . . Melee . | . . . Knockbacks 7 | . 3 4 Impact . | . . . Kinetic 7 | . 3 4 Secondary . | . . . Self-Inflicted Damage . | . . . Shots . | . . . Rammed . | . . . Targets Rammed . | . . . Kicked . | . . . Crushed . | . . . Highest Temperature 165 | 20 61 165 Average Temperature 25 | 13 23 26 Received Heat Transfer 188 | . 75 113 Siege Activations . | . . . Robots Corrupted . | . . . Combat Hostiles . | . . . Parts Fried . | . . . Impact Corruptions . | . . . Robots Melted . | . . . Combat Hostiles . | . . . Parts Melted . | . . . Heat Transferred 74 | . . 74 Parts Sabotaged . | . . . Parts Stolen . | . . . Parts Stripped . | . . . Power Chain Reactions . | . . . Missiles Intercepted . | . . . Alert | -11 -10 -10 ------- Run | Scr Mat Min Peak Influence 131 | 10 131 121 Initial 51 | . 6 51 Average 65 | 4 60 86 Maximum Alert Level . | . . . Low Security (%) 100 | 100 100 100 Level 1 . | . . . Level 2 . | . . . Level 3 . | . . . Level 4 . | . . . Level 5 . | . . . High Security . | . . . Max Security . | . . . Squads Dispatched . | . . . Investigation . | . . . Extermination . | . . . Reinforcement . | . . . Assault . | . . . Garrison . | . . . Intercept . | . . . Construction Impeded . | . . . Haulers Reinforced . | . . . Stealth | -11 -10 -10 --------- Run | Scr Mat Min Distress Signals 1 | . 1 . Communications Jammed . | . . . Distress Signals . | . . . Times Spotted 22 | . 6 16 Peak Tracking Total 5 | . 3 5 Tactical Retreats 2 | . 1 1 Traps | -11 -10 -10 ------- Run | Scr Mat Min Traps Triggered . | . . . Indirectly . | . . . Trap Hack Attempts . | . . . Triggered . | . . . Disarmed . | . . . Reprogrammed . | . . . Reused . | . . . Traps Extracted . | . . . Installed . | . . . Triggered . | . . . Machines | -11 -10 -10 ---------- Run | Scr Mat Min Machines Disabled . | . . . Max in Single Turn . | . . . Machines Sabotaged . | . . . Garrisons Compromised . | . . . Overloaded Fab Kills . | . . . Fab Network Shutdowns . | . . . Hacking | -11 -10 -10 --------- Run | Scr Mat Min Machines Accessed . | . . . Terminals . | . . . Fabricators . | . . . Repair Stations . | . . . Recycling Units . | . . . Scanalyzers . | . . . Garrison Access . | . . . Total Hacks . | . . . Successful . | . . . Failed . | . . . Catastrophic . | . . . Database Lockouts . | . . . Manual . | . . . Terminals . | . . . Fabricators . | . . . Repair Stations . | . . . Recycling Units . | . . . Scanalyzers . | . . . Garrison Access . | . . . Terminal Hacks . | . . . Fabricator Hacks . | . . . Repair Station Hacks . | . . . Recycling Unit Hacks . | . . . Scanalyzer . | . . . Garrison Access Hacks . | . . . Unauthorized Hacks . | . . . Terminals . | . . . Fabricators . | . . . Repair Stations . | . . . Recycling Units . | . . . Scanalyzers . | . . . Garrison Access . | . . . Data Cores Recovered . | . . . Used . | . . . Hacking Detections . | . . . Full Trace Events . | . . . Feedback Events . | . . . Feedback Blocked . | . . . Robot Schematics Acquired . | . . . Robots Built . | . . . Matter . | . . . Time . | . . . Total Robot Build Rating . | . . . Part Schematics Acquired . | . . . Parts Built . | . . . Matter . | . . . Time . | . . . Total Part Build Rating . | . . . Parts Repaired . | . . . Time . | . . . Parts Recycled . | . . . Recycled Matter . | . . . Retrieved Matter . | . . . Retrieved Components . | . . . Parts Scanalyzed . | . . . Part Schematics Acquired . | . . . Parts Damaged . | . . . Bothacking | -11 -10 -10 ------------ Run | Scr Mat Min Used RIF Installer . | . . . Robots Hacked . | . . . Non-combat . | . . . Combat . | . . . Robot Hacks Applied . | . . . Relay Couplers Released . | . . . Robots Rewired . | . . . Allies Hacked . | . . . Hacks Repelled . | . . . Allies | -11 -10 -10 -------- Run | Scr Mat Min Total Allies . | . . . Largest Group . | . . . Highest-Rated Group . | . . . Highest-Rated Ally . | . . . Total Orders . | . . . Ally Attacks . | . . . Total Damage . | . . . Kills . | . . . Allies Corrupted . | . . . Allies Melted . | . . . Intel | -11 -10 -10 ------- Run | Scr Mat Min Robot Analysis Total . | . . . Derelict Logs Recovered 1 | . . 1 Drone Launches . | . . . Drone Recoveries . | . . . Exploration | -11 -10 -10 ------------- Run | Scr Mat Min Turns Passed 984 | 150 305 529 Spaces Moved 479 | 83 155 241 Core 20 | 8 . 12 Treads 459 | 75 155 229 Legs . | . . . Wheels . | . . . Hover . | . . . Flight . | . . . Fastest Speed 50 | 50 160 100 Average Speed 156 | 150 160 157 Slowest Speed 160 | 160 160 160 Overloaded Moves . | . . . Propulsion Burnouts . | . . . Robots Hopped . | . . . Cave-ins Triggered . | . . . Exploration Rate (%) 25 | 7 25 45 Regions Visited 2 Branch Regions 1 Pre-discovered Areas . | . . . Known Exits Taken 1 | . 1 . Unknown Exits Taken 1 | 1 . . Scrap Searched . | . . . Spaces Dug . | . . . Terrain Destroyed . | . . . Melee . | . . . Projectile . | . . . AOE . | . . . Terrain Rammed . | . . . Walls Destroyed . | . . . Machines Disabled . | . . . Actions | -11 -10 -10 --------- Run | Scr Mat Min Total 584 | 96 190 298 Wait 9 | . 9 . Move 477 | 82 154 241 Hop . | . . . Pick Up 9 | 2 7 . Fast Attach 9 | 6 1 2 Attach 1 | . . 1 Detach . | . . . Swap 3 | 1 2 . Drop 4 | . 4 . Fire 72 | 5 13 54 Melee . | . . . Ram . | . . . Kick . | . . . Crush . | . . . Escape Stasis . | . . . Rewire . | . . . Trap . | . . . Miscellaneous . | . . . Route ------- -11/Scrapyard -10/Materials -10/Mines (discovered 1 exit: *Mat) History --------- Turn | Location | Event 17 | -11/Scrapyard | Discovered new exit (range 16) 151 | -11/Scrapyard | Entered Materials 305 | -10/Materials | Build established: Mutant 397 | -10/Materials | Discovered new exit (range 11) 455 | -10/Materials | Identified exit to Mines 456 | -10/Materials | Entered Mines 457 | -10/Mines | Assembled infested the area 787 | -10/Mines | Learned Materials security intel 859 | -10/Mines | Discovered new exit (range 5) 866 | -10/Mines | Identified exit to Materials 956 | -10/Mines | Core integrity fell below 50% 970 | -10/Mines | Core integrity fell below 20% 985 | -10/Mines | Destroyed by D-53 Grenadier with Mini Grenade Launcher Last Messages --------------- 00853_ G-34 Mercenary destroyed. 00857_ G-47 Trooper destroyed. 00859_ EXIT=FOUND 00866_ EXIT=IDENTIFIED: MATERIALS 00871_ System corrupted: Heat flow error (+183). 00871_ Acquired 16 matter. 00877_ Acquired Particle Gun. 00882_ Acquired 10 matter. 00933_ #F5H87XPDXUWCLFV|CRMLTHQO7|2VKXR:TESM 00952_ System corrupted: Component data lost. 00953_ Ion Engine destroyed. 00959_ Lgt. Treads destroyed. 00963_ Lgt. Cannon destroyed. 00963_ Lgt. Treads destroyed. 00964_ The unstable cave ceiling collapses. 00967_ Particle Gun destroyed. 00972_ The unstable cave ceiling collapses. 00980_ Acquired Sml. Laser. 00981_ System corrupted: Sml. Laser targeting data glitched. 00984_ System corrupted: Matter fused (-6). Map ----- +----------------------------------------------------+ | | | | | | | | | | | | | | | | | | | | | | | | | | | | | | | | | ??????????????????????????????????????????????? | | ??????????????????????????????????????????????? | | ???????????????????????????????????????????#### | | ?????????????????????????????????????????### | | ??????####???????????###????????????????## | | ?????## ############# #????????????????# | | ?????# ##???????????????# | | ?????# ########## ! ##????#####??????# # | | ?????# #####??### % ##??## ####???# # | | ?????# #??# *@ #?## %###### # | | ?????## ### #??# ! = #?# """ =*= | | ??????## ### #### < #?# """ =%! | | ???????# #### """! ## ### % | | ???????## ######### # ### =%### #?# | | ????????###???????### ### #?# #?# | | ????????????????????# # #?# | | ???????????????????## # =#?#### | | ???????????????????# d =%##?#### | | ???????????????????## # # %!=## ### # | | ????????????????????# # !%| ##### | | ????????????????????# # # # *!! #???? | | ????????????????????### # * ##???? | | ??????????????????????### ####%= ##????? | | ????????????????????????# ##??#!!## #?????? | | ????????????????????????# #???# %#?# #????? | | ??????????????????######## #####% #?? #???? | | ??????????????# =#??? #??? | | ??????????????????###################??? #??? | | ????????????????????????????????????????? #??? | | ????????????????????????????????????????? ##??? | | ??????????????????????????????????????????#?# ! | | ??????????????????????????????????????????????? | | ??????????????????????????????????????????????? | | ??????????????????????????????????????????????? | +----------------------------------------------------+ Best States ------------- Heat Dissipation 25 Energy Generation 10 Energy Capacity 250 Matter Stores 300 Matter Capacity 300 Sight Range 16 Terrain Scan Density 10 Evasion (%) 40 Recoil Reduction 2 Item Schematics ----------------- None Robot Schematics ------------------ None Fabricated ------------ Nothing Alien Tech Used ----------------- None Achievements -------------- None Challenges ------------ None Game ------ Seed SkeletonGravmagNanosword Manual? 0 Play Time 00:09:34 Cumulative 12.2 hours Start 2021.06.06 @ 21:31:56 End 2021.06.06 @ 21:44:49 Sessions 1 Manual Loads 0 Difficulty Rogue Special Mode None Game No. 30 Rogue 26 Adventurer 0 Explorer 4 Win Type - Total 0 Types 0/0/0/0/0/0/0/0/0 Lore% 19 Gallery% 21 Achievement% 18 Wizard Run 0 Options --------- ASCII 0 Keyboard 0 Movement Numpad Keybinds 0 Fullscreen 2 Font 12/Terminus Map View 83x54 Tactical HUD 1 Map Filters NONE Filters NONE Steam 1 RUN: a85f6d4f-8000-4e80-9a6a-e866950e72a1